[Event "Titled Tuesday Blitz April 18 Early 2023"]
[White "Amilal Munkhdalai"]
[Black "Novikov, Evgenij"]
[WhiteFideId "4903250"]
[BlackFideId "4125380"]
[WhiteElo "2293"]
[BlackElo "2242"]
[Result "1-0"]
[Round "09"]
[TimeControl "180+2"]
[Date "2023.04.18"]
[WhiteClock "0:01:23"]
[BlackClock "0:00:02"]

1. e4 {[%clk 0:02:59]}  c5 {[%clk 0:02:56]} 2. Nf3 {[%clk 0:02:59]}  d6 {[%clk 0:02:55]} 3. d4 {[%clk 0:02:59]}  cxd4 {[%clk 0:02:53]} 4. Nxd4 {[%clk 0:03:00]}  Nf6 {[%clk 0:02:53]} 5. f3 {[%clk 0:03:01]}  e5 {[%clk 0:02:49]} 6. Nb3 {[%clk 0:03:01]}  Be6 {[%clk 0:02:48]} 7. Bg5 {[%clk 0:03:00]}  Nbd7 {[%clk 0:02:47]} 8. c4 {[%clk 0:02:59]}  h6 {[%clk 0:02:45]} 9. Be3 {[%clk 0:02:59]}  a5 {[%clk 0:02:42]} 10. Nc3 {[%clk 0:02:58]}  a4 {[%clk 0:02:40]} 11. Nc1 {[%clk 0:02:58]}  a3 {[%clk 0:02:41]} 12. b3 {[%clk 0:02:58]}  Be7 {[%clk 0:02:28]} 13. Bd3 {[%clk 0:02:56]}  O-O {[%clk 0:02:28]} 14. O-O {[%clk 0:02:56]}  Nc5 {[%clk 0:02:18]} 15. Bc2 {[%clk 0:02:54]}  Nfd7 {[%clk 0:02:13]} 16. N1e2 {[%clk 0:02:52]}  Kh8 {[%clk 0:02:08]} 17. Nb5 {[%clk 0:02:51]}  Ra6 {[%clk 0:01:58]} 18. Nbc3 {[%clk 0:02:44]}  f5 {[%clk 0:01:52]} 19. b4 {[%clk 0:02:40]}  f4 {[%clk 0:01:37]} 20. Bf2 {[%clk 0:02:37]}  Bxc4 {[%clk 0:01:35]} 21. bxc5 {[%clk 0:02:37]}  dxc5 {[%clk 0:01:27]} 22. Bd3 {[%clk 0:02:34]}  Rd6 {[%clk 0:00:57]} 23. Nd5 {[%clk 0:02:30]}  Bxd5 {[%clk 0:00:52]} 24. exd5 {[%clk 0:02:30]}  Nf6 {[%clk 0:00:50]} 25. Qb3 {[%clk 0:02:15]}  Rxd5 {[%clk 0:00:48]} 26. Bc4 {[%clk 0:02:12]}  Rd2 {[%clk 0:00:46]} 27. Rad1 {[%clk 0:02:09]}  g5 {[%clk 0:00:35]} 28. Rxd2 {[%clk 0:02:06]}  Qxd2 {[%clk 0:00:36]} 29. Rd1 {[%clk 0:02:07]}  Qb4 {[%clk 0:00:30]} 30. Qc2 {[%clk 0:02:01]}  g4 {[%clk 0:00:25]} 31. Rb1 {[%clk 0:01:56]}  Qa5 {[%clk 0:00:22]} 32. Rxb7 {[%clk 0:01:55]}  gxf3 {[%clk 0:00:22]} 33. gxf3 {[%clk 0:01:49]}  Qa8 {[%clk 0:00:15]} 34. Rxe7 {[%clk 0:01:44]}  Qxf3 {[%clk 0:00:15]} 35. Qg6 {[%clk 0:01:40]}  Qg4+ {[%clk 0:00:08]} 36. Qxg4 {[%clk 0:01:40]}  Nxg4 {[%clk 0:00:09]} 37. Bxc5 {[%clk 0:01:38]}  Rc8 {[%clk 0:00:09]} 38. Be6 {[%clk 0:01:27]}  Rxc5 {[%clk 0:00:09]} 39. Bxg4 {[%clk 0:01:27]}  Rc2 {[%clk 0:00:09]} 40. Rxe5 {[%clk 0:01:27]}  Rxa2 {[%clk 0:00:09]} 41. Ra5 {[%clk 0:01:27]}  Kg7 {[%clk 0:00:04]} 42. Nxf4 {[%clk 0:01:27]}  Ra1+ {[%clk 0:00:02]} 43. Kg2 {[%clk 0:01:27]}  a2 {[%clk 0:00:02]} 44. Be6 {[%clk 0:01:25]}  Kf6 {[%clk 0:00:02]} 45. Rxa2 {[%clk 0:01:23]}  Re1 {[%clk 0:00:02]} 46. Rf2 {[%clk 0:01:23]} 1-0


[Site "https://www.chess.com"]

[Event "Titled Tuesday Blitz April 18 Early 2023"]
[White "Ravi, Teja S."]
[Black "Rodchenkov, Sergey D."]
[WhiteFideId "5017220"]
[BlackFideId "4168712"]
[WhiteElo "2433"]
[BlackElo "2277"]
[Result "1-0"]
[Round "09"]
[TimeControl "180+2"]
[Date "2023.04.18"]
[WhiteClock "0:00:50"]
[BlackClock "0:00:02"]

1. d4 {[%clk 0:03:00]}  d5 {[%clk 0:02:59]} 2. c4 {[%clk 0:03:01]}  dxc4 {[%clk 0:03:00]} 3. e3 {[%clk 0:02:59]}  Nf6 {[%clk 0:03:00]} 4. Bxc4 {[%clk 0:02:59]}  e6 {[%clk 0:03:01]} 5. Nf3 {[%clk 0:03:00]}  c5 {[%clk 0:03:01]} 6. O-O {[%clk 0:03:00]}  a6 {[%clk 0:03:02]} 7. Bb3 {[%clk 0:03:00]}  Nbd7 {[%clk 0:02:49]} 8. Qe2 {[%clk 0:02:59]}  b5 {[%clk 0:02:34]} 9. Rd1 {[%clk 0:02:54]}  c4 {[%clk 0:02:33]} 10. Bc2 {[%clk 0:02:52]}  Bb7 {[%clk 0:02:33]} 11. a3 {[%clk 0:02:47]}  Be7 {[%clk 0:02:33]} 12. e4 {[%clk 0:02:47]}  O-O {[%clk 0:02:34]} 13. Nc3 {[%clk 0:02:47]}  Qb6 {[%clk 0:01:47]} 14. e5 {[%clk 0:02:46]}  Nd5 {[%clk 0:01:45]} 15. Bg5 {[%clk 0:02:40]}  Nxc3 {[%clk 0:01:26]} 16. bxc3 {[%clk 0:02:37]}  Bxf3 {[%clk 0:01:26]} 17. Qxf3 {[%clk 0:02:18]}  Bxg5 {[%clk 0:01:25]} 18. h4 {[%clk 0:02:13]}  Bh6 {[%clk 0:01:13]} 19. Qh5 {[%clk 0:02:10]}  Rfd8 {[%clk 0:00:57]} 20. g4 {[%clk 0:02:08]}  Qc6 {[%clk 0:00:38]} 21. g5 {[%clk 0:02:06]}  g6 {[%clk 0:00:37]} 22. Qxh6 {[%clk 0:02:05]}  Qf3 {[%clk 0:00:37]} 23. Rac1 {[%clk 0:01:53]}  Nb6 {[%clk 0:00:34]} 24. Re1 {[%clk 0:01:48]}  Qg4+ {[%clk 0:00:22]} 25. Kf1 {[%clk 0:01:46]}  Nd5 {[%clk 0:00:22]} 26. Be4 {[%clk 0:01:42]}  Nf4 {[%clk 0:00:22]} 27. Re3 {[%clk 0:01:36]}  Rab8 {[%clk 0:00:20]} 28. Rce1 {[%clk 0:01:33]}  Nh5 {[%clk 0:00:10]} 29. Bf3 {[%clk 0:01:24]}  Qh3+ {[%clk 0:00:10]} 30. Ke2 {[%clk 0:01:17]}  Nf4+ {[%clk 0:00:10]} 31. Kd2 {[%clk 0:01:18]}  Qh2 {[%clk 0:00:10]} 32. Rf1 {[%clk 0:01:15]}  b4 {[%clk 0:00:09]} 33. axb4 {[%clk 0:01:14]}  a5 {[%clk 0:00:10]} 34. h5 {[%clk 0:01:07]}  axb4 {[%clk 0:00:09]} 35. hxg6 {[%clk 0:01:04]}  Qxh6 {[%clk 0:00:09]} 36. gxf7+ {[%clk 0:01:02]}  Kxf7 {[%clk 0:00:10]} 37. gxh6 {[%clk 0:01:03]}  b3 {[%clk 0:00:09]} 38. Be4 {[%clk 0:01:01]}  Nd5 {[%clk 0:00:07]} 39. Rf3+ {[%clk 0:01:00]}  Ke7 {[%clk 0:00:06]} 40. Rg1 {[%clk 0:01:00]}  Rg8 {[%clk 0:00:06]} 41. Rfg3 {[%clk 0:00:57]}  Rxg3 {[%clk 0:00:01]} 42. Rxg3 {[%clk 0:00:58]}  b2 {[%clk 0:00:02]} 43. Rg7+ {[%clk 0:00:58]}  Kf8 {[%clk 0:00:02]} 44. Bb1 {[%clk 0:00:58]}  Nf4 {[%clk 0:00:03]} 45. Rxh7 {[%clk 0:00:57]}  Kg8 {[%clk 0:00:03]} 46. Rg7+ {[%clk 0:00:56]}  Kh8 {[%clk 0:00:03]} 47. Rc7 {[%clk 0:00:53]}  Nd3 {[%clk 0:00:02]} 48. Rxc4 {[%clk 0:00:53]}  Nxf2 {[%clk 0:00:03]} 49. Rc6 {[%clk 0:00:51]}  Nh3 {[%clk 0:00:02]} 50. Rxe6 {[%clk 0:00:51]}  Nf4 {[%clk 0:00:02]} 51. Rd6 {[%clk 0:00:50]}  Nh5 {[%clk 0:00:02]} 52. e6 {[%clk 0:00:50]}  Nf6 {[%clk 0:00:02]} 53. e7 {[%clk 0:00:50]}  Ne8 {[%clk 0:00:02]} 54. Rd8 {[%clk 0:00:50]} 1-0


[Site "https://www.chess.com"]

[Event "Titled Tuesday Blitz April 18 Early 2023"]
[White "Chernomordik, Pavel"]
[Black "Skvortsov, Andrei"]
[WhiteFideId "2804530"]
[BlackFideId "24108600"]
[WhiteElo "2193"]
[BlackElo "2259"]
[Result "0-1"]
[Round "09"]
[TimeControl "180+2"]
[Date "2023.04.18"]
[WhiteClock "0:01:18"]
[BlackClock "0:02:16"]

1. e4 {[%clk 0:03:00]}  d5 {[%clk 0:02:53]} 2. exd5 {[%clk 0:03:00]}  Qxd5 {[%clk 0:02:54]} 3. Nc3 {[%clk 0:03:00]}  Qe5+ {[%clk 0:02:55]} 4. Be2 {[%clk 0:02:58]}  Bg4 {[%clk 0:02:55]} 5. d4 {[%clk 0:02:55]}  Bxe2 {[%clk 0:02:55]} 6. Ngxe2 {[%clk 0:02:54]}  Qa5 {[%clk 0:02:56]} 7. O-O {[%clk 0:02:53]}  Nf6 {[%clk 0:02:56]} 8. d5 {[%clk 0:02:44]}  c6 {[%clk 0:02:55]} 9. Nf4 {[%clk 0:02:40]}  cxd5 {[%clk 0:02:54]} 10. Ncxd5 {[%clk 0:02:36]}  Nxd5 {[%clk 0:02:54]} 11. Nxd5 {[%clk 0:02:24]}  Nc6 {[%clk 0:02:52]} 12. Bf4 {[%clk 0:02:16]}  O-O-O {[%clk 0:02:39]} 13. c4 {[%clk 0:02:03]}  e6 {[%clk 0:02:35]} 14. Bd2 {[%clk 0:01:58]}  Qa6 {[%clk 0:02:26]} 15. Nc3 {[%clk 0:01:50]}  Qxc4 {[%clk 0:02:23]} 16. Rc1 {[%clk 0:01:37]}  Qd3 {[%clk 0:02:21]} 17. Qf3 {[%clk 0:01:25]}  Qxf3 {[%clk 0:02:19]} 18. gxf3 {[%clk 0:01:18]}  Rxd2 {[%clk 0:02:18]} 19. Ne4 {[%clk 0:01:17]}  Rd5 {[%clk 0:02:16]} 20. Ng5 {[%clk 0:01:18]}  Rxg5+ {[%clk 0:02:16]} 0-1


[Site "https://www.chess.com"]

[Event "Titled Tuesday Blitz April 18 Early 2023"]
[White "Delorme, Alban"]
[Black "Vaibhav Jayant Raut"]
[WhiteFideId "623636"]
[BlackFideId "5089034"]
[WhiteElo "2196"]
[BlackElo "2156"]
[Result "1/2-1/2"]
[Round "09"]
[TimeControl "180+2"]
[Date "2023.04.18"]
[WhiteClock "0:02:57"]
[BlackClock "0:02:28"]

1. e4 {[%clk 0:03:00]}  c5 {[%clk 0:02:56]} 2. Nf3 {[%clk 0:03:00]}  Nc6 {[%clk 0:02:56]} 3. d4 {[%clk 0:03:00]}  cxd4 {[%clk 0:02:56]} 4. Nxd4 {[%clk 0:03:01]}  Nf6 {[%clk 0:02:57]} 5. Nc3 {[%clk 0:03:02]}  e5 {[%clk 0:02:46]} 6. Ndb5 {[%clk 0:03:02]}  d6 {[%clk 0:02:46]} 7. Nd5 {[%clk 0:03:02]}  Nxd5 {[%clk 0:02:46]} 8. exd5 {[%clk 0:03:03]}  Ne7 {[%clk 0:02:45]} 9. c4 {[%clk 0:03:03]}  Ng6 {[%clk 0:02:42]} 10. Qa4 {[%clk 0:03:02]}  Bd7 {[%clk 0:02:43]} 11. Qb4 {[%clk 0:03:03]}  Bf5 {[%clk 0:02:40]} 12. Qa4 {[%clk 0:03:01]}  Bd7 {[%clk 0:02:38]} 13. Qb4 {[%clk 0:03:02]}  Bf5 {[%clk 0:02:33]} 14. Qa4 {[%clk 0:02:57]}  Bd7 {[%clk 0:02:28]} 1/2-1/2


[Site "https://www.chess.com"]

[Event "Titled Tuesday Blitz April 18 Early 2023"]
[White "Cherniaiev, Tykhon"]
[Black "Osinenko, Anton"]
[WhiteFideId "14182360"]
[BlackFideId "4158970"]
[WhiteElo "2450"]
[BlackElo "2294"]
[Result "0-1"]
[Round "09"]
[TimeControl "180+2"]
[Date "2023.04.18"]
[WhiteClock "0:00:07"]
[BlackClock "0:00:11"]

1. Nf3 {[%clk 0:03:00]}  g6 {[%clk 0:02:58]} 2. d4 {[%clk 0:02:57]}  Bg7 {[%clk 0:02:59]} 3. c4 {[%clk 0:02:57]}  c5 {[%clk 0:02:59]} 4. g3 {[%clk 0:02:57]}  cxd4 {[%clk 0:02:59]} 5. Nxd4 {[%clk 0:02:58]}  Nc6 {[%clk 0:03:00]} 6. Nxc6 {[%clk 0:02:57]}  bxc6 {[%clk 0:03:01]} 7. Bg2 {[%clk 0:02:58]}  Rb8 {[%clk 0:02:56]} 8. O-O {[%clk 0:02:52]}  Rxb2 {[%clk 0:02:44]} 9. Bxb2 {[%clk 0:02:40]}  Bxb2 {[%clk 0:02:45]} 10. Nd2 {[%clk 0:02:41]}  Bxa1 {[%clk 0:02:45]} 11. Qxa1 {[%clk 0:02:42]}  Nf6 {[%clk 0:02:45]} 12. Ne4 {[%clk 0:02:40]}  O-O {[%clk 0:02:44]} 13. Nxf6+ {[%clk 0:02:39]}  exf6 {[%clk 0:02:45]} 14. Rd1 {[%clk 0:02:32]}  Qe7 {[%clk 0:02:36]} 15. e3 {[%clk 0:02:30]}  f5 {[%clk 0:02:32]} 16. Qd4 {[%clk 0:02:23]}  Qa3 {[%clk 0:02:31]} 17. h4 {[%clk 0:02:19]}  Qxa2 {[%clk 0:02:07]} 18. Ra1 {[%clk 0:02:16]}  Qb3 {[%clk 0:01:58]} 19. Rxa7 {[%clk 0:02:13]}  h5 {[%clk 0:01:54]} 20. c5 {[%clk 0:01:47]}  Qe6 {[%clk 0:01:46]} 21. Bf1 {[%clk 0:01:32]}  Qe4 {[%clk 0:01:36]} 22. Qd6 {[%clk 0:01:22]}  Re8 {[%clk 0:01:17]} 23. Qc7 {[%clk 0:01:04]}  f4 {[%clk 0:01:07]} 24. Qxf4 {[%clk 0:00:56]}  Qxf4 {[%clk 0:01:06]} 25. gxf4 {[%clk 0:00:53]}  Kf8 {[%clk 0:01:06]} 26. Kg2 {[%clk 0:00:52]}  Ke7 {[%clk 0:01:05]} 27. Kf3 {[%clk 0:00:52]}  Rd8 {[%clk 0:01:02]} 28. Bc4 {[%clk 0:00:50]}  Kf6 {[%clk 0:00:59]} 29. e4 {[%clk 0:00:44]}  Ke7 {[%clk 0:00:55]} 30. e5 {[%clk 0:00:43]}  f6 {[%clk 0:00:51]} 31. Ke4 {[%clk 0:00:43]}  Rf8 {[%clk 0:00:50]} 32. Bd3 {[%clk 0:00:39]}  Ke6 {[%clk 0:00:44]} 33. Bc4+ {[%clk 0:00:36]}  Ke7 {[%clk 0:00:44]} 34. f3 {[%clk 0:00:36]}  fxe5 {[%clk 0:00:34]} 35. fxe5 {[%clk 0:00:35]}  Rf5 {[%clk 0:00:31]} 36. f4 {[%clk 0:00:34]}  Rf8 {[%clk 0:00:30]} 37. Ra1 {[%clk 0:00:28]}  Kd8 {[%clk 0:00:20]} 38. Rg1 {[%clk 0:00:27]}  Ke8 {[%clk 0:00:20]} 39. Rxg6 {[%clk 0:00:27]}  d5+ {[%clk 0:00:20]} 40. Ke3 {[%clk 0:00:16]}  dxc4 {[%clk 0:00:21]} 41. Rxc6 {[%clk 0:00:17]}  Bf5 {[%clk 0:00:19]} 42. Rd6 {[%clk 0:00:13]}  c3 {[%clk 0:00:18]} 43. c6 {[%clk 0:00:13]}  c2 {[%clk 0:00:18]} 44. Kd2 {[%clk 0:00:13]}  Ke7 {[%clk 0:00:18]} 45. c7 {[%clk 0:00:09]}  Rc8 {[%clk 0:00:18]} 46. Rc6 {[%clk 0:00:09]}  Kd7 {[%clk 0:00:17]} 47. Rf6 {[%clk 0:00:03]}  Rxc7 {[%clk 0:00:14]} 48. Kc1 {[%clk 0:00:04]}  Be4 {[%clk 0:00:12]} 49. f5 {[%clk 0:00:03]}  Ke7 {[%clk 0:00:11]} 50. Re6+ {[%clk 0:00:03]}  Kf7 {[%clk 0:00:11]} 51. Rf6+ {[%clk 0:00:04]}  Kg7 {[%clk 0:00:11]} 52. Rg6+ {[%clk 0:00:04]}  Kh7 {[%clk 0:00:10]} 53. Rg5 {[%clk 0:00:04]}  Ra7 {[%clk 0:00:10]} 54. Rxh5+ {[%clk 0:00:04]}  Kg7 {[%clk 0:00:11]} 55. f6+ {[%clk 0:00:05]}  Kg6 {[%clk 0:00:11]} 56. Rg5+ {[%clk 0:00:05]}  Kh6 {[%clk 0:00:11]} 57. e6 {[%clk 0:00:06]}  Ra1+ {[%clk 0:00:11]} 58. Kd2 {[%clk 0:00:06]}  c1=Q+ {[%clk 0:00:12]} 59. Ke2 {[%clk 0:00:07]}  Ra2# {[%clk 0:00:11]} 0-1


[Site "https://www.chess.com"]

[Event "Titled Tuesday Blitz April 18 Early 2023"]
[White "Brunner, Nicolas"]
[Black "Hajiyev, Kanan"]
[WhiteFideId "620246"]
[BlackFideId "13404148"]
[WhiteElo "2327"]
[BlackElo "2103"]
[Result "1-0"]
[Round "09"]
[TimeControl "180+2"]
[Date "2023.04.18"]
[WhiteClock "0:00:18"]
[BlackClock "0:00:02"]

1. Nf3 {[%clk 0:03:00]}  Nf6 {[%clk 0:02:57]} 2. g3 {[%clk 0:03:01]}  g6 {[%clk 0:02:57]} 3. Bg2 {[%clk 0:03:02]}  Bg7 {[%clk 0:02:58]} 4. O-O {[%clk 0:03:02]}  O-O {[%clk 0:02:58]} 5. d4 {[%clk 0:03:02]}  d5 {[%clk 0:02:58]} 6. c4 {[%clk 0:03:01]}  c6 {[%clk 0:02:59]} 7. cxd5 {[%clk 0:03:02]}  cxd5 {[%clk 0:02:59]} 8. Nc3 {[%clk 0:03:02]}  Ne4 {[%clk 0:03:00]} 9. Qb3 {[%clk 0:02:58]}  Nxc3 {[%clk 0:03:00]} 10. bxc3 {[%clk 0:02:58]}  Nc6 {[%clk 0:03:00]} 11. Ba3 {[%clk 0:02:44]}  Re8 {[%clk 0:03:00]} 12. Rfd1 {[%clk 0:02:30]}  b6 {[%clk 0:02:55]} 13. Ne5 {[%clk 0:02:26]}  Nxe5 {[%clk 0:01:35]} 14. dxe5 {[%clk 0:02:26]}  e6 {[%clk 0:01:24]} 15. Bd6 {[%clk 0:02:19]}  Ba6 {[%clk 0:01:13]} 16. e4 {[%clk 0:02:16]}  Bc4 {[%clk 0:01:13]} 17. Qa3 {[%clk 0:02:11]}  Qg5 {[%clk 0:00:40]} 18. exd5 {[%clk 0:02:08]}  exd5 {[%clk 0:00:39]} 19. Bxd5 {[%clk 0:02:06]}  Bxd5 {[%clk 0:00:36]} 20. Rxd5 {[%clk 0:02:05]}  h5 {[%clk 0:00:22]} 21. Re1 {[%clk 0:01:55]}  h4 {[%clk 0:00:20]} 22. Kg2 {[%clk 0:01:45]}  Qf5 {[%clk 0:00:18]} 23. c4 {[%clk 0:01:05]}  h3+ {[%clk 0:00:16]} 24. Kf1 {[%clk 0:00:48]}  Rac8 {[%clk 0:00:13]} 25. Qb3 {[%clk 0:00:44]}  Qg4 {[%clk 0:00:05]} 26. c5 {[%clk 0:00:31]}  bxc5 {[%clk 0:00:06]} 27. Bxc5 {[%clk 0:00:28]}  Qe6 {[%clk 0:00:04]} 28. Bd6 {[%clk 0:00:23]}  Qd7 {[%clk 0:00:03]} 29. Rb5 {[%clk 0:00:20]}  Qg4 {[%clk 0:00:03]} 30. Rb7 {[%clk 0:00:19]}  Rf8 {[%clk 0:00:03]} 31. e6 {[%clk 0:00:18]}  fxe6 {[%clk 0:00:02]} 32. Qxe6+ {[%clk 0:00:19]}  Kh8 {[%clk 0:00:02]} 33. Qxg4 {[%clk 0:00:18]} 1-0


[Site "https://www.chess.com"]

[Event "Titled Tuesday Blitz April 18 Early 2023"]
[White "Devaev, Alexander"]
[Black "Sieciechowicz, Marcin"]
[WhiteFideId "4169395"]
[BlackFideId "1130170"]
[WhiteElo "2204"]
[BlackElo "2302"]
[Result "0-1"]
[Round "09"]
[TimeControl "180+2"]
[Date "2023.04.18"]
[WhiteClock "0:00:02"]
[BlackClock "0:01:13"]

1. Nf3 {[%clk 0:03:00]}  Nf6 {[%clk 0:03:00]} 2. c4 {[%clk 0:03:01]}  c6 {[%clk 0:02:59]} 3. e3 {[%clk 0:02:58]}  d5 {[%clk 0:03:00]} 4. b3 {[%clk 0:02:58]}  Bf5 {[%clk 0:03:00]} 5. Bb2 {[%clk 0:02:59]}  e6 {[%clk 0:03:00]} 6. Be2 {[%clk 0:02:54]}  h6 {[%clk 0:03:00]} 7. O-O {[%clk 0:02:55]}  Be7 {[%clk 0:03:00]} 8. Nd4 {[%clk 0:02:55]}  Bh7 {[%clk 0:02:59]} 9. f4 {[%clk 0:02:56]}  c5 {[%clk 0:02:55]} 10. Nf3 {[%clk 0:02:54]}  Nc6 {[%clk 0:02:50]} 11. Ne5 {[%clk 0:02:42]}  d4 {[%clk 0:02:46]} 12. Nxc6 {[%clk 0:02:37]}  bxc6 {[%clk 0:02:47]} 13. Bf3 {[%clk 0:02:34]}  Rc8 {[%clk 0:02:45]} 14. exd4 {[%clk 0:02:12]}  cxd4 {[%clk 0:02:46]} 15. d3 {[%clk 0:02:12]}  O-O {[%clk 0:02:34]} 16. Qe2 {[%clk 0:02:13]}  Nd7 {[%clk 0:02:29]} 17. Nd2 {[%clk 0:02:09]}  Nc5 {[%clk 0:02:05]} 18. Ne4 {[%clk 0:02:09]}  Nxe4 {[%clk 0:01:58]} 19. Bxe4 {[%clk 0:02:09]}  Bxe4 {[%clk 0:01:59]} 20. Qxe4 {[%clk 0:02:08]}  c5 {[%clk 0:02:00]} 21. Rae1 {[%clk 0:01:56]}  Bf6 {[%clk 0:01:57]} 22. Bc1 {[%clk 0:01:51]}  Qa5 {[%clk 0:01:56]} 23. Re2 {[%clk 0:01:46]}  Rfe8 {[%clk 0:01:53]} 24. Rfe1 {[%clk 0:01:07]}  Qb6 {[%clk 0:01:39]} 25. Qf3 {[%clk 0:00:53]}  Qc6 {[%clk 0:01:38]} 26. Qg4 {[%clk 0:00:47]}  Kh8 {[%clk 0:01:33]} 27. Rf2 {[%clk 0:00:39]}  a5 {[%clk 0:01:32]} 28. Qd1 {[%clk 0:00:31]}  a4 {[%clk 0:01:31]} 29. bxa4 {[%clk 0:00:31]}  Ra8 {[%clk 0:01:32]} 30. Rb2 {[%clk 0:00:24]}  Qxa4 {[%clk 0:01:31]} 31. Qxa4 {[%clk 0:00:20]}  Rxa4 {[%clk 0:01:32]} 32. Rb5 {[%clk 0:00:20]}  Rxa2 {[%clk 0:01:22]} 33. Rxc5 {[%clk 0:00:20]}  Rc2 {[%clk 0:01:22]} 34. Kf1 {[%clk 0:00:14]}  Ra8 {[%clk 0:01:21]} 35. f5 {[%clk 0:00:09]}  Raa2 {[%clk 0:01:17]} 36. fxe6 {[%clk 0:00:08]}  fxe6 {[%clk 0:01:17]} 37. Rc8+ {[%clk 0:00:01]}  Kh7 {[%clk 0:01:17]} 38. c5 {[%clk 0:00:02]}  Rxg2 {[%clk 0:01:16]} 39. Rxe6 {[%clk 0:00:02]}  Rxh2 {[%clk 0:01:13]} 0-1


[Site "https://www.chess.com"]

[Event "Titled Tuesday Blitz April 18 Early 2023"]
[White "Grot, Blazej"]
[Black "Sadykov, Ramil"]
[WhiteFideId "21835845"]
[BlackFideId "24113590"]
[WhiteElo "1823"]
[BlackElo "2245"]
[Result "1-0"]
[Round "09"]
[TimeControl "180+2"]
[Date "2023.04.18"]
[WhiteClock "0:01:03"]
[BlackClock "0:00:01"]

1. e4 {[%clk 0:03:00]}  c5 {[%clk 0:02:57]} 2. Nf3 {[%clk 0:03:00]}  e6 {[%clk 0:02:58]} 3. d4 {[%clk 0:02:56]}  cxd4 {[%clk 0:02:58]} 4. Nxd4 {[%clk 0:02:56]}  Nc6 {[%clk 0:02:57]} 5. Nc3 {[%clk 0:02:56]}  Qc7 {[%clk 0:02:57]} 6. Be2 {[%clk 0:02:53]}  Nf6 {[%clk 0:02:55]} 7. O-O {[%clk 0:02:52]}  Be7 {[%clk 0:02:53]} 8. Kh1 {[%clk 0:02:48]}  a6 {[%clk 0:02:50]} 9. f4 {[%clk 0:02:48]}  d6 {[%clk 0:02:46]} 10. Be3 {[%clk 0:02:45]}  O-O {[%clk 0:02:45]} 11. Qe1 {[%clk 0:02:44]}  Nxd4 {[%clk 0:02:43]} 12. Bxd4 {[%clk 0:02:44]}  b5 {[%clk 0:02:44]} 13. Qg3 {[%clk 0:02:40]}  Bb7 {[%clk 0:02:43]} 14. a3 {[%clk 0:02:39]}  Bc6 {[%clk 0:02:35]} 15. Rae1 {[%clk 0:02:37]}  Rad8 {[%clk 0:02:25]} 16. Bf3 {[%clk 0:02:33]}  Qb7 {[%clk 0:02:13]} 17. b4 {[%clk 0:02:25]}  Rfe8 {[%clk 0:02:02]} 18. Nd1 {[%clk 0:02:21]}  Qc7 {[%clk 0:01:44]} 19. Nf2 {[%clk 0:02:20]}  a5 {[%clk 0:01:26]} 20. bxa5 {[%clk 0:02:15]}  Qxa5 {[%clk 0:01:24]} 21. Bxf6 {[%clk 0:02:11]}  Bxf6 {[%clk 0:01:22]} 22. e5 {[%clk 0:02:09]}  Bxf3 {[%clk 0:00:55]} 23. exf6 {[%clk 0:02:07]}  Bxg2+ {[%clk 0:00:55]} 24. Kxg2 {[%clk 0:02:00]}  g6 {[%clk 0:00:55]} 25. Qh4 {[%clk 0:01:59]}  h5 {[%clk 0:00:42]} 26. Qg5 {[%clk 0:01:56]}  Kh7 {[%clk 0:00:41]} 27. Re3 {[%clk 0:01:46]}  Qd2 {[%clk 0:00:36]} 28. Rh3 {[%clk 0:01:45]}  Qd5+ {[%clk 0:00:19]} 29. Qxd5 {[%clk 0:01:41]}  exd5 {[%clk 0:00:19]} 30. Nd3 {[%clk 0:01:36]}  Re6 {[%clk 0:00:18]} 31. Nb4 {[%clk 0:01:29]}  Rxf6 {[%clk 0:00:16]} 32. Nxd5 {[%clk 0:01:29]}  Rf5 {[%clk 0:00:13]} 33. Rd3 {[%clk 0:01:25]}  Rc8 {[%clk 0:00:12]} 34. Kg3 {[%clk 0:01:17]}  Rxc2 {[%clk 0:00:07]} 35. Ne3 {[%clk 0:01:13]}  h4+ {[%clk 0:00:07]} 36. Kh3 {[%clk 0:01:07]}  Rcc5 {[%clk 0:00:03]} 37. Nxf5 {[%clk 0:01:07]}  Rxf5 {[%clk 0:00:04]} 38. Rxd6 {[%clk 0:01:07]}  Rc5 {[%clk 0:00:04]} 39. Rd3 {[%clk 0:01:06]}  Kh6 {[%clk 0:00:03]} 40. Kxh4 {[%clk 0:01:06]}  f6 {[%clk 0:00:03]} 41. Kg3 {[%clk 0:01:04]}  Rc2 {[%clk 0:00:02]} 42. Rb1 {[%clk 0:01:04]}  Rc5 {[%clk 0:00:01]} 43. Rb4 {[%clk 0:01:03]} 1-0


[Site "https://www.chess.com"]

[Event "Titled Tuesday Blitz April 18 Early 2023"]
[White "Hirneise, Jens"]
[Black "Palczert, Matyas"]
[WhiteFideId "24614734"]
[BlackFideId "784958"]
[WhiteElo "2345"]
[BlackElo "2224"]
[Result "1/2-1/2"]
[Round "09"]
[TimeControl "180+2"]
[Date "2023.04.18"]
[WhiteClock "0:00:40"]
[BlackClock "0:00:18"]

1. Nf3 {[%clk 0:03:00]}  Nf6 {[%clk 0:02:56]} 2. c4 {[%clk 0:02:58]}  e6 {[%clk 0:02:55]} 3. Nc3 {[%clk 0:02:58]}  d5 {[%clk 0:02:56]} 4. e3 {[%clk 0:02:56]}  Be7 {[%clk 0:02:56]} 5. b3 {[%clk 0:02:54]}  O-O {[%clk 0:02:55]} 6. Bb2 {[%clk 0:02:55]}  c5 {[%clk 0:02:52]} 7. cxd5 {[%clk 0:02:52]}  exd5 {[%clk 0:02:49]} 8. d4 {[%clk 0:02:48]}  Nc6 {[%clk 0:02:49]} 9. Be2 {[%clk 0:02:41]}  Ne4 {[%clk 0:02:49]} 10. O-O {[%clk 0:02:36]}  Bf6 {[%clk 0:02:47]} 11. Rc1 {[%clk 0:02:33]}  cxd4 {[%clk 0:02:44]} 12. Nxe4 {[%clk 0:02:14]}  dxe4 {[%clk 0:02:44]} 13. Nxd4 {[%clk 0:02:15]}  Nxd4 {[%clk 0:02:44]} 14. exd4 {[%clk 0:02:15]}  Be6 {[%clk 0:02:42]} 15. Re1 {[%clk 0:02:08]}  Bd5 {[%clk 0:02:38]} 16. Bc4 {[%clk 0:01:56]}  Rc8 {[%clk 0:02:24]} 17. Qe2 {[%clk 0:01:47]}  Re8 {[%clk 0:02:13]} 18. Bxd5 {[%clk 0:01:44]}  Qxd5 {[%clk 0:02:04]} 19. Rxc8 {[%clk 0:01:44]}  Rxc8 {[%clk 0:02:04]} 20. Qxe4 {[%clk 0:01:43]}  Qxe4 {[%clk 0:01:59]} 21. Rxe4 {[%clk 0:01:44]}  g6 {[%clk 0:01:59]} 22. Re1 {[%clk 0:01:21]}  Rc2 {[%clk 0:01:56]} 23. Rb1 {[%clk 0:01:21]}  b5 {[%clk 0:01:40]} 24. Kf1 {[%clk 0:01:20]}  b4 {[%clk 0:01:37]} 25. g3 {[%clk 0:01:17]}  Kf8 {[%clk 0:01:35]} 26. h4 {[%clk 0:01:10]}  Ke8 {[%clk 0:01:33]} 27. Re1+ {[%clk 0:01:08]}  Kd7 {[%clk 0:01:32]} 28. Re2 {[%clk 0:01:09]}  Rc6 {[%clk 0:01:27]} 29. d5 {[%clk 0:01:02]}  Ra6 {[%clk 0:01:23]} 30. Bxf6 {[%clk 0:01:02]}  Rxf6 {[%clk 0:01:23]} 31. Re4 {[%clk 0:01:02]}  Rb6 {[%clk 0:01:22]} 32. Ke2 {[%clk 0:00:58]}  Kd6 {[%clk 0:01:20]} 33. Rd4 {[%clk 0:00:58]}  a5 {[%clk 0:01:07]} 34. Kd3 {[%clk 0:00:53]}  Rb5 {[%clk 0:01:06]} 35. Ke4 {[%clk 0:00:50]}  Rc5 {[%clk 0:01:04]} 36. Rc4 {[%clk 0:00:46]}  Rxd5 {[%clk 0:00:40]} 37. Rd4 {[%clk 0:00:42]}  f5+ {[%clk 0:00:38]} 38. Kd3 {[%clk 0:00:42]}  Kc5 {[%clk 0:00:22]} 39. Rxd5+ {[%clk 0:00:42]}  Kxd5 {[%clk 0:00:22]} 40. f4 {[%clk 0:00:40]}  h6 {[%clk 0:00:18]} 41. Ke3 {[%clk 0:00:40]}  h5 {[%clk 0:00:17]} 42. Kd3 {[%clk 0:00:40]}  Kc5 {[%clk 0:00:17]} 43. Ke3 {[%clk 0:00:39]}  Kd5 {[%clk 0:00:18]} 44. Kd3 {[%clk 0:00:40]} 1/2-1/2


[Site "https://www.chess.com"]